fUSD/lending_fUSD_20251228
["ID","MTS","AMOUNT","RATE_DAILY","PERIOD"]
[399939240,1766903440845,-500.93361917,0.00016522,2]
[399939241,1766903440854,-396.906905,0.00016592,2]
[399939242,1766903440865,-867.97554972,0.0001666,2]
[399939243,1766903440875,-200.0,0.00016699,2]
[399939244,1766903440885,-164.7,0.00016712,2]
[399939245,1766903440895,-1300.0,0.00016726,7]
[399939246,1766903440904,-396.906905,0.00016764,2]
[399939247,1766903440914,-538.0,0.00016826,2]
[399939248,1766903440924,-200.0,0.00016864,2]
[399939249,1766903440934,-314.90111822,0.000169,2]
[399939250,1766903440944,-1471.77320938,0.000169,2]
[399939251,1766903440955,-1403.51807199,0.000169,2]
[399939252,1766903440965,-174.51,0.00016902,2]
[399939253,1766903440974,-538.0,0.00016921,2]
[399939255,1766903440984,-396.906905,0.00016937,2]
[399939257,1766903440995,-538.0,0.00016953,2]
[399939259,1766903441005,-503.81545293,0.00016973,2]
[399939260,1766903441015,-500.0,0.00016973,2]
[399939261,1766903441024,-500.0,0.00016973,2]
[399939262,1766903441034,-500.0,0.00016973,2]
[399939263,1766903441043,-500.0,0.00016973,2]
[399939264,1766903441053,-500.0,0.00016973,2]
[399939265,1766903441062,-578.09055034,0.00016973,2]
[399939266,1766903441072,-500.0,0.00016973,2]
[399939267,1766903441082,-500.69794678,0.00016973,2]
[399939268,1766903441092,-500.0,0.00016973,2]
[399939269,1766903441102,-194.63016162,0.00016973,2]
[399939270,1766903441112,-502.87827131,0.00016973,2]
[399939271,1766903441121,-638.26902364,0.00016973,2]
[399939272,1766903441131,-150.0,0.00016986,2]
[399939273,1766903441141,-150.0,0.00016986,2]
[399939274,1766903441150,-168.0,0.00016986,2]
[399939275,1766903441160,-300.0,0.00016999,2]
[399939276,1766903441170,-1086081.67330035,0.00017,2]
[399939277,1766903441181,-1870209.81027608,0.00017,2]
[399939313,1766903445676,-1010.1,0.00017,2]
[399939314,1766903445737,-518.799982,0.00017,2]
[399939315,1766903445748,-463.38156278,0.00017,2]
[399939316,1766903445853,-4095.31242003,0.00017,2]
[399939317,1766903445864,-1746.43951466,0.00017,2]
[399939318,1766903445874,-15159.94437866,0.00017,2]
[399939319,1766903445968,-1907.42836594,0.00017,2]
[399939330,1766903617228,267.22096647,0.0003013,120]
[399939335,1766903846646,154.83,7.817e-05,2]
[399939336,1766903847283,154.83,9.771e-05,2]
[399939337,1766903847332,154.83,0.00011725,2]
[399939383,1766904631897,-181.969832,0.00013579,2]
[399939384,1766904631907,-1186.82090871,0.00013678,2]
[399939385,1766904631920,-612.54757404,0.00013678,2]
[399939386,1766904631931,-573.88372243,0.00013678,2]
[399939387,1766904631942,-590.65687782,0.00013678,2]
[399939388,1766904631952,-154.83,0.00013679,2]
[399939389,1766904631962,-333.74,0.00013699,2]
[399939390,1766904631971,-300.0,0.0001389,2]
[399939391,1766904631981,-304.50154706,0.0001389,2]
[399939392,1766904631992,-150.0,0.00014695,2]
[399939393,1766904632002,-157.12,0.00014699,2]
[399939394,1766904632012,-1993.40124022,0.00014725,2]
[399939395,1766904632023,-300.0,0.00014936,2]
[399939396,1766904632033,-1193.0,0.00014936,2]
[399939397,1766904632044,-300.0,0.00014937,2]
[399939398,1766904632055,-600.0,0.00014937,2]
[399939399,1766904632065,-195.0,0.00014937,2]
[399939400,1766904632076,-300.0,0.00015046,2]
[399939401,1766904632085,-600.0,0.00015082,2]
[399939402,1766904632095,-1200.0,0.00015082,2]
[399939403,1766904632105,-166.66,0.00015246,2]
[399939404,1766904632115,-1200.0,0.00015356,2]
[399939405,1766904632125,-9511.22194112,0.00015599,2]
[399939408,1766904632138,-988.28202685,0.00015599,2]
[399939410,1766904632150,-1014.31929586,0.00015599,2]
[399939412,1766904632161,-861.87017049,0.00015599,2]
[399939414,1766904632172,-948.71227506,0.00015599,2]
[399939416,1766904632184,-8406.3084529,0.00015599,2]
[399939419,1766904632195,-1326.4511873,0.00015599,2]
[399939421,1766904632207,-551.60954034,0.00015599,2]
[399939423,1766904632218,-2257.89935505,0.00015599,2]
[399939425,1766904632230,-4666.21162689,0.00015599,2]
[399939434,1766904637953,-244.79421989,0.00015598,2]
[399939436,1766904637963,-232.72617926,0.00015598,2]
[399939438,1766904637972,-343.47960085,0.00015598,2]
[399939439,1766904637983,-69.30039915,0.00015598,2]
[399939440,1766904637993,-500.0,0.00015598,2]
[399939441,1766904638005,-500.0,0.00015598,2]
[399939442,1766904638015,-500.0,0.00015598,2]
[399939443,1766904638025,-500.0,0.00015598,2]
[399939444,1766904638034,-500.0,0.00015598,2]
[399939445,1766904638043,-500.0,0.00015598,2]
[399939446,1766904638053,-500.0,0.00015598,2]
[399939447,1766904638067,-500.0,0.00015598,2]
[399939448,1766904638077,-500.0,0.00015598,2]
[399939449,1766904638088,-500.0,0.00015598,2]
[399939450,1766904638098,-500.0,0.00015598,2]
[399939451,1766904638109,-500.0,0.00015598,2]
[399939452,1766904638118,-500.0,0.00015598,2]
[399939453,1766904638128,-500.0,0.00015598,2]
[399939454,1766904638138,-500.0,0.00015598,2]
[399939455,1766904638147,-240.5490394,0.00015598,2]
[399939456,1766904638157,-500.0,0.00015598,2]
[399939457,1766904638167,-500.0,0.00015598,2]
[399939458,1766904638177,-25344.41129828,0.00015599,2]
[399939459,1766904638188,-3549.40743783,0.00015599,2]
[399939460,1766904638198,-999.0,0.00015599,2]
[399939461,1766904638214,-20931.9263994,0.00015599,2]
[399939466,1766904640001,-5406.50649121,0.00015599,2]
[399939467,1766904640075,-758789.76678243,0.00015599,2]
[399939468,1766904640087,-1902.07,0.00015599,2]
[399939469,1766904640098,-2860.95238278,0.00015599,2]
[399939470,1766904640110,-684.41918329,0.00015599,2]
[399939471,1766904640123,-467.5944425,0.00015599,2]
[399939472,1766904640211,-776.42636932,0.00015599,2]
[399939473,1766904640222,-3464.4454591,0.00015599,2]
[399939474,1766904640276,-144290.187882,0.00015599,2]
[399939475,1766904640287,-178.293,0.00015599,2]
[399939476,1766904640296,-154.83,0.00015633,2]
[399939477,1766904640308,-208.86276468,0.00015689,2]
[399939478,1766904640321,-245.533,0.00015698,2]
[399939479,1766904640330,-641.256,0.00015698,2]
[399939480,1766904640341,-453.33,0.00015698,2]
[399939481,1766904640350,-1000.0,0.00015699,2]
[399939482,1766904640361,-178.293,0.00015744,2]
[399939483,1766904640371,-2450.49,0.0001577,2]
[399939484,1766904640380,-151.0,0.00015857,2]
[399939485,1766904640389,-151.0,0.00015857,2]
[399939486,1766904640398,-151.0,0.00015865,2]
[399939487,1766904640407,-151.0,0.00015865,2]
[399939488,1766904640416,-151.0,0.00015868,2]
[399939489,1766904640426,-151.0,0.00015868,2]
[399939490,1766904640435,-166.66,0.00015875,2]
[399939491,1766904640444,-178.293,0.00015888,2]
[399939492,1766904640454,-453.33,0.00015972,2]
[399939493,1766904640463,-174.51,0.00015978,2]
[399939494,1766904640472,-178.293,0.00016033,2]
[399939495,1766904640483,-178.293,0.00016177,2]
[399939496,1766904640493,-175.54,0.00016185,2]
[399939497,1766904640502,-453.33,0.00016246,2]
[399939498,1766904640511,-500.93361917,0.0001626,2]
[399939499,1766904640520,-178.293,0.00016322,2]
[399939500,1766904640529,-353.94301346,0.00016438,2]
[399939501,1766904640538,-600.0,0.00016452,7]
[399939502,1766904640552,-1200.0,0.00016452,7]
[399939503,1766904640565,-999.0,0.00016463,3]
[399939504,1766904640574,-178.293,0.00016466,2]
[399939505,1766904640583,-166.66,0.00016504,2]
[399939506,1766904640593,-453.33,0.0001652,2]
[399939507,1766904640602,-6100.0,0.00016533,2]
[399939509,1766904640612,-178.293,0.00016611,2]
[399939510,1766904640623,-867.97554972,0.0001666,2]
[399939511,1766904640635,-500.0,0.00016699,2]
[399939512,1766904640643,-500.0,0.00016699,2]
[399939513,1766904640653,-150.0,0.00016699,2]
[399939514,1766904640662,-150.0,0.00016699,2]
[399939515,1766904640672,-150.0,0.00016699,2]
[399939516,1766904640682,-150.0,0.00016699,2]
[399939517,1766904640693,-200.0,0.00016699,2]
[399939518,1766904640702,-1200.0,0.00016726,7]
[399939519,1766904640713,-500.0,0.00016726,2]
[399939520,1766904640723,-150.0,0.00016726,2]
[399939521,1766904640734,-500.0,0.00016726,2]
[399939522,1766904640745,-177.00452714,0.00016726,2]
[399939523,1766904640755,-150.98746646,0.00016726,2]
[399939524,1766904640764,-176.84626368,0.00016726,2]
[399939525,1766904640773,-500.0,0.00016754,2]
[399939526,1766904640782,-254.80596104,0.00016754,2]
[399939527,1766904640791,-500.0,0.00016754,2]
[399939528,1766904640799,-178.293,0.00016755,2]
[399939529,1766904640808,-453.35322688,0.00016794,2]
[399939530,1766904640817,-200.0,0.00016864,2]
[399939531,1766904640826,-178.293,0.000169,2]
[399939532,1766904640835,-1471.77320938,0.000169,2]
[399939533,1766904640844,-1403.51807199,0.000169,2]
[399939534,1766904640854,-176860.3326196,0.00016941,2]
[399939535,1766904640863,-3498.5952821,0.00016941,2]
[399939536,1766904640872,-578.09055034,0.00016973,2]
[399939537,1766904640881,-500.69794678,0.00016973,2]
[399939538,1766904640890,-340.61062855,0.00016973,2]
[399939539,1766904640900,-500.0,0.00016973,2]
[399939540,1766904640908,-500.0,0.00016973,2]
[399939541,1766904640918,-500.0,0.00016973,2]
[399939542,1766904640927,-500.0,0.00016973,2]
[399939543,1766904640936,-503.81545293,0.00016973,2]
[399939544,1766904640946,-500.0,0.00016973,2]
[399939545,1766904640955,-500.0,0.00016973,2]
[399939546,1766904640964,-500.0,0.00016973,2]
[399939547,1766904640974,-500.0,0.00016973,2]
[399939548,1766904640983,-502.87827131,0.00016973,2]
[399939549,1766904640992,-638.26902364,0.00016973,2]
[399939550,1766904641001,-500.0,0.00016973,2]
[399939551,1766904641010,-194.63016162,0.00016973,2]
[399939552,1766904641020,-150.0,0.00016999,2]
[399939553,1766904641029,-150.0,0.00016999,2]
[399939554,1766904641038,-300.0,0.00016999,2]
[399939555,1766904641048,-2191734.88289675,0.00017,2]
[399939556,1766904641057,-536622.3357722,0.00017,2]
[399939557,1766904641066,-828959.81728161,0.00017,2]
[399939569,1766904643847,-25981.31607109,0.00017,2]
[399939571,1766904643860,-302.05042645,0.00017,2]
[399939575,1766904645085,-662.76,0.00017,2]
[399939577,1766904645885,-16804.09074715,0.00017,2]
[399939578,1766904645906,-10857.50445949,0.00017,2]
[399939579,1766904645920,-510.71503545,0.00017,2]
[399939580,1766904645943,-1782.93,0.00017,2]
[399939581,1766904645955,-383.87296915,0.00017,2]
[399939582,1766904646076,-151.0,0.00016013,2]
[399939583,1766904646085,-857.24074895,0.00017,2]
[399939584,1766904646194,-592.40075735,0.00017,2]
[399939588,1766905050804,172.0,0.00030137,120]
[399939598,1766905257747,436.0,0.00030137,120]
[399939622,1766905729256,150.0,0.00030137,120]
[399939629,1766905831962,-326.71333278,0.00014973,2]
[399939630,1766905831976,-173.28666722,0.00014973,2]
[399939631,1766905831987,-77.71333278,0.00014973,2]
[399939632,1766905832000,-196.28666722,0.00014973,2]
[399939633,1766905832011,-500.0,0.00015082,2]
[399939634,1766905832021,-682.46,0.00015286,2]
[399939635,1766905832031,-196.427,0.00015286,2]
[399939636,1766905832041,-150.0,0.00015288,2]
[399939637,1766905832051,-150.0,0.00015288,2]
[399939638,1766905832060,-150.0,0.00015288,2]
[399939639,1766905832070,-1000.0,0.00015356,2]
[399939640,1766905832080,-658.4139194,0.00015356,2]
[399939641,1766905832092,-441.5860806,0.00015356,2]
[399939642,1766905832103,-180.31509558,0.00015421,2]
[399939643,1766905832113,-162.90832548,0.00015497,2]
[399939644,1766905832123,-171.35595393,0.00015497,2]
[399939645,1766905832136,-500.0,0.00015497,2]
[399939646,1766905832147,-500.0,0.00015497,2]
[399939648,1766905832158,-500.0,0.00015497,2]
[399939650,1766905832169,-268.58074913,0.00015497,2]
[399939652,1766905832180,-621092.30949231,0.00015498,2]
[399939655,1766905832193,-2284.80704458,0.00015498,2]
[399939657,1766905832207,-79867.34303008,0.00015498,2]
[399939659,1766905832220,-257768.05101378,0.00015498,2]
[399939661,1766905832231,-1254.41808677,0.00015498,2]
[399939663,1766905832242,-520.56194573,0.00015498,2]
[399939720,1766905838039,-2526.07203788,0.00015498,2]
[399939721,1766905838052,-18183.44096051,0.00015498,2]
[399939725,1766905838161,-3748.82210153,0.00015498,2]
[399939726,1766905838174,-12754.17428683,0.00015498,2]
[399939727,1766905838184,-500.0,0.00015521,2]
[399939728,1766905838195,-210.5661,0.00015599,2]
[399939729,1766905838206,-211.56,0.00015781,2]
[399939730,1766905838217,-1000.0,0.00016016,2]
[399939731,1766905838227,-151.0,0.00016107,2]
[399939732,1766905838237,-151.0,0.00016107,2]
[399939733,1766905838248,-151.0,0.00016112,2]
[399939734,1766905838258,-151.0,0.00016112,2]
[399939735,1766905838269,-200.0,0.00016149,2]
[399939737,1766905838281,-354.71358104,0.00016149,2]
[399939739,1766905838291,-151.0,0.00016254,2]
[399939741,1766905838301,-151.0,0.00016254,2]
[399939743,1766905838311,-4623.99,0.00016438,2]
[399939745,1766905838321,-500.0,0.00016452,7]
[399939747,1766905838331,-230.47665565,0.0001647,2]
[399939749,1766905838341,-825.13,0.0001647,2]
[399939752,1766905838352,-252.83575514,0.0001647,2]
[399939753,1766905838367,-300.0,0.0001647,2]
[399939756,1766905838378,-4877.0,0.00016533,2]
[399939758,1766905838388,-433.98777486,0.0001666,2]
[399939760,1766905838399,-164.71,0.00016712,2]
[399939762,1766905838409,-1000.0,0.00016726,7]
[399939764,1766905838419,-1100.0,0.00016726,7]
[399939766,1766905838431,-200.0,0.00016864,2]
[399939768,1766905838440,-172.16495328,0.000169,2]
[399939770,1766905838450,-981.18213958,0.000169,2]
[399939772,1766905838460,-1052.7997614,0.000169,2]
[399939774,1766905838470,-935.67871466,0.000169,2]
[399939776,1766905838480,-500.0,0.00016973,2]
[399939778,1766905838490,-181.50262471,0.00016973,2]
[399939780,1766905838500,-500.0,0.00016973,2]
[399939782,1766905838511,-502.64033527,0.00016973,2]
[399939784,1766905838521,-503.81545293,0.00016973,2]
[399939786,1766905838531,-500.0,0.00016973,2]
[399939788,1766905838540,-500.0,0.00016973,2]
[399939790,1766905838551,-500.0,0.00016973,2]
[399939792,1766905838560,-500.0,0.00016973,2]
[399939794,1766905838570,-194.63016162,0.00016973,2]
[399939797,1766905838580,-502.87827131,0.00016973,2]
[399939799,1766905838590,-500.0,0.00016973,2]
[399939801,1766905838600,-638.26902364,0.00016973,2]
[399939803,1766905838611,-4662.97440808,0.00016997,2]
[399939805,1766905838623,-12382.0090856,0.00016997,2]
[399939809,1766905840143,-27724.65303722,0.00016997,2]
[399939810,1766905840154,-37919.3797772,0.00016997,2]
[399939811,1766905840165,-150.0,0.00016999,2]
[399939812,1766905840175,-150.0,0.00016999,2]
[399939813,1766905840187,-300.0,0.00016999,2]
[399939814,1766905840197,-31187.72143498,0.00017,2]
[399939815,1766905840210,-325.929999,0.00017,2]
[399939816,1766905840222,-841.0,0.00017,2]
[399939817,1766905840234,-607.11128601,0.00017,2]
[399939818,1766905840246,-1378.47091591,0.00017,2]
[399939819,1766905840258,-500.0,0.00017,2]
[399939820,1766905840322,-2859.88288406,0.00017,2]
[399939821,1766905840334,-1401087.01758053,0.00017,2]
[399939822,1766905840344,-1262283.36869971,0.00017,2]
[399939823,1766905840354,-151.0,0.00017,2]
[399939824,1766905840367,-151.0,0.00017,2]
[399939825,1766905840378,-151.0,0.00017,2]
[399939826,1766905840388,-151.0,0.00017,2]
[399939827,1766905840400,-151.0,0.00017,2]
[399939828,1766905840410,-151.0,0.00017,2]
[399939829,1766905840420,-151.0,0.00017,2]
[399939830,1766905840431,-250.0,0.00017,2]
[399939831,1766905840441,-180.31509555,0.0001703,2]
[399939832,1766905840451,-538.0,0.00017037,2]
[399939833,1766905840460,-168.0,0.00017042,2]
[399939834,1766905840471,-538.0,0.00017082,2]
[399939835,1766905840480,-168.0,0.00017115,2]
[399939836,1766905840491,-166.66,0.00017133,2]
[399939837,1766905840500,-157.12,0.00017149,2]
[399939838,1766905840510,-154.86,0.00017166,2]
[399939839,1766905840519,-538.0,0.00017167,2]
[399939840,1766905840529,-168.0,0.00017167,2]
[399939841,1766905840540,-168.0,0.00017188,2]
[399939842,1766905840550,-420.70057688,0.00017213,2]
[399939843,1766905840561,-210.35028844,0.00017224,2]
[399939844,1766905840571,-168.0,0.00017246,2]
[399939845,1766905840581,-168.0,0.00017279,2]
[399939846,1766905840592,-174.82979269,0.00017279,2]
[399939847,1766905840603,-168.0,0.00017311,2]
[399939848,1766905840614,-538.0,0.00017413,2]
[399939849,1766905840624,-538.0,0.00017468,2]
[399939850,1766905840635,-424.20807152,0.00017521,2]
[399939851,1766905840646,-481.0497289,0.00017521,2]
[399939852,1766905840657,-1000.0,0.00017521,2]
[399939853,1766905840667,-1000.0,0.00017521,2]
[399939854,1766905840678,-1000.0,0.00017521,2]
[399939856,1766905840688,-1000.0,0.00017521,2]
[399939857,1766905840698,-1000.0,0.00017521,2]
[399939858,1766905840708,-168.0,0.00017535,2]
[399939859,1766905840721,-500.0,0.00017548,7]
[399939860,1766905840731,-168.0,0.00017644,2]
[399939861,1766905840742,-168.0,0.00017672,2]
[399939862,1766905840752,-168.0,0.00017683,2]
[399939863,1766905840763,-168.0,0.00017713,2]
[399939864,1766905840774,-166.66,0.00017762,2]
[399939865,1766905840784,-1000.0,0.00017822,7]
[399939866,1766905840794,-1100.0,0.00017822,7]
[399939867,1766905840804,-168.0,0.00017928,2]
[399939868,1766905840815,-3473.399,0.00017954,2]
[399939869,1766905840825,-1333.109,0.00017954,2]
[399939870,1766905840835,-615.88,0.00017954,2]
[399939871,1766905840845,-1271.737,0.00017954,2]
[399939872,1766905840856,-435.663,0.00017954,2]
[399939873,1766905840867,-2446.792,0.00017954,2]
[399939874,1766905840877,-4824.747,0.00017954,2]
[399939875,1766905840888,-564.0,0.00017954,2]
[399939876,1766905840899,-8686.6916815,0.00018,7]
[399939877,1766905840909,-1000.0,0.00018017,2]
[399939878,1766905840919,-1500.0,0.00018068,2]
[399939879,1766905840930,-1500.0,0.00018068,2]
[399939880,1766905840940,-1500.0,0.00018068,2]
[399939881,1766905840951,-1500.0,0.00018068,2]
[399939882,1766905840961,-507.71318398,0.00018068,2]
[399939883,1766905840971,-1000.0,0.00018082,2]
[399939884,1766905840982,-168.0,0.00018145,2]
[399939885,1766905840992,-175.54,0.00018208,2]
[399939886,1766905841003,-250.0,0.00018245,2]
[399939887,1766905841013,-168.0,0.00018376,2]
[399939888,1766905841024,-2108.3,0.00018547,2]
[399939889,1766905841035,-1503.95753135,0.00018616,2]
[399939890,1766905841466,-503.73099585,0.00018616,2]
[399939891,1766905841484,-1696.74687624,0.00018616,2]
[399939892,1766905841495,-443.51805555,0.00018616,2]
[399939893,1766905841505,-180.31509555,0.00018639,2]
[399939894,1766905841514,-500.0,0.00018644,7]
[399939895,1766905841524,-1000.0,0.0001876,2]
[399939896,1766905841533,-152.35148617,0.00018864,2]
[399939897,1766905841542,-1000.0,0.00018918,7]
[399939898,1766905841552,-1100.0,0.00018918,7]
[399939899,1766905841561,-1583.72732992,0.00019,2]
[399939900,1766905841572,-710.66184009,0.00019,2]
[399939901,1766905841581,-144218.09773217,0.00019,2]
[399939902,1766905841590,-300.0,0.00019,2]
[399939903,1766905841600,-317.37684229,0.00019082,2]
[399939904,1766905841610,-780.6421255,0.00019093,2]
[399939905,1766905841619,-9989.4561689,0.00019165,2]
[399939906,1766905841628,-8460.9572824,0.00019165,2]
[399939907,1766905841637,-150.0,0.00019178,2]
[399939908,1766905841646,-290.08099,0.00019178,2]
[399939909,1766905841656,-151.0,0.00019178,2]
[399939910,1766905841665,-150.0,0.00019178,2]
[399939911,1766905841676,-150.0,0.00019205,2]
[399939912,1766905841686,-202.90001788,0.00019233,2]
[399939913,1766905841695,-178.78,0.00019288,2]
[399939914,1766905841706,-178.59,0.00019288,2]
[399939915,1766905841716,-178.59,0.00019288,2]
[399939916,1766905841725,-178.59,0.00019288,2]
[399939917,1766905841735,-178.59,0.00019288,2]
[399939918,1766905841745,-178.23,0.00019288,2]
[399939919,1766905841755,-1206.78,0.00019339,2]
[399939920,1766905841764,-1000.0,0.00019438,2]
[399939921,1766905841774,-174.1848025,0.00019573,2]
[399939922,1766905841784,-157.12,0.00019599,2]
[399939923,1766905841794,-2228.9489547,0.00019648,2]
[399939924,1766905841804,-1887.8947534,0.00019648,2]
[399939925,1766905841814,-150.11199507,0.00019669,2]
[399939926,1766905841824,-209.95860428,0.00019726,2]
[399939927,1766905841834,-500.0,0.0001974,7]
[399939928,1766905841843,-4908.51589828,0.000199,3]
[399939929,1766905841853,-689.88672182,0.0001995,15]
[399939930,1766905841863,-1000.0,0.0002,10]
[399939931,1766905841874,-163.75252809,0.0002,2]
[399939932,1766905841884,-1000.0,0.00020014,7]
[399939933,1766905841893,-1100.0,0.00020014,7]
[399939934,1766905841903,-1000.0,0.00020019,2]
[399939935,1766905841914,-357.1,0.0002011,2]
[399939936,1766905841924,-178.59,0.0002011,2]
[399939937,1766905841934,-181.36,0.0002011,2]
[399939938,1766905841945,-357.14,0.0002011,2]
[399939939,1766905841955,-178.43,0.0002011,2]
[399939940,1766905841965,-178.55,0.0002011,2]
[399939941,1766905841975,-1000.0,0.00020116,2]
[399939942,1766905841985,-333.74,0.00020187,2]
[399939943,1766905841996,-175.54,0.00020231,2]
[399939944,1766905842007,-180.31509555,0.00020247,2]
[399939945,1766905842017,-2108.3,0.00020406,2]
[399939946,1766905842027,-1205.66,0.00020548,2]
[399939947,1766905842038,-151.1,0.00020548,2]
[399939948,1766905842049,-1220.9,0.00020548,2]
[399939949,1766905842060,-563.48,0.00020548,2]
[399939950,1766905842071,-233.3,0.00020548,2]
[399939951,1766905842083,-1220.9,0.00020548,2]
[399939952,1766905842094,-1247.92,0.00020548,2]
[399939953,1766905842105,-1220.9,0.00020548,2]
[399939954,1766905842116,-1218.25,0.00020548,2]
[399939955,1766905842126,-172.16495324,0.00020567,2]
[399939956,1766905842135,-500.0,0.0002066,3]
[399939957,1766905842145,-1000.0,0.00020795,2]
[399939958,1766905842156,-1532.02,0.00020951,2]
[399939959,1766905842166,-4999.99,0.00020951,2]
[399939960,1766905842175,-1195.59,0.00020951,2]
[399939961,1766905842185,-150.99,0.00020951,2]
[399939962,1766905842195,-9999.99,0.00020951,2]
[399939963,1766905842205,-9859.89,0.00020951,2]
[399939964,1766905842215,-4549.42,0.00020951,2]
[399939965,1766905842225,-499.99,0.00020951,2]
[399939966,1766905842235,-735.67,0.00020951,2]
[399939967,1766905842246,-299.99,0.00020951,7]
[399939968,1766905842257,-425.4,0.00020951,2]
[399939969,1766905842267,-9226.16,0.00020951,2]
[399939970,1766905842277,-168.45,0.00020951,2]
[399939971,1766905842287,-999.99,0.00020951,2]
[399939972,1766905842298,-3460.0,0.00020954,2]
[399939973,1766905842308,-613.0,0.00020954,2]
[399939974,1766905842318,-1264.0,0.00020954,2]
[399939975,1766905842328,-432.0,0.00020954,2]
[399939976,1766905842338,-4810.0,0.00020954,2]
[399939977,1766905842348,-1000.0,0.0002111,7]
[399939978,1766905842359,-1052.79976135,0.000213,2]
[399939979,1766905842370,-481.44,0.00021753,2]
[399939980,1766905842380,-5000.0,0.00021918,2]
[399939981,1766905842390,-223.56,0.00021918,30]
[399939982,1766905842401,-151.0,0.00021918,2]
[399939983,1766905842411,-500.0,0.00021932,7]
[399939984,1766905842421,-1000.0,0.00022,10]
[399939985,1766905842431,-1000.0,0.00022021,2]
[399939986,1766905842442,-157.12,0.00022049,2]
[399939987,1766905842451,-2450.49,0.00022078,2]
[399939988,1766905842462,-1100.0,0.00022206,7]
[399939989,1766905842472,-175.54,0.00022254,2]
[399939990,1766905842482,-2108.3,0.00022266,2]
[399939991,1766905842493,-308.54,0.000224,7]
[399939992,1766905842504,-169.0,0.00023,7]
[399939993,1766905842514,-1000.0,0.00023302,7]
[399939994,1766905842524,-152.35148617,0.0002358,2]
[399939995,1766905842535,-178.62,0.00023781,2]
[399939996,1766905842545,-174.52,0.0002399,2]
[399939997,1766905842556,-1012.20491392,0.00024,3]
[399939998,1766905842566,-1000.0,0.00024023,2]
[399939999,1766905842576,-500.0,0.00024124,7]
[399940000,1766905842587,-2108.3,0.00024125,2]
[399940001,1766905842598,-169.0,0.00024164,7]
[399940002,1766905842607,-172.16495324,0.00024233,2]
[399940003,1766905842617,-175.54,0.00024277,2]
[399940004,1766905842628,-1100.0,0.00024398,7]
[399940005,1766905842639,-1000.0,0.00024658,2]
[399940006,1766905842650,-189.7932299,0.00024658,2]
[399940007,1766905842661,-308.54,0.000248,7]
[399940008,1766905842671,-4460.77321371,0.000248,3]
[399940009,1766905842682,-6516.99974354,0.000249,3]
[399940010,1766905842692,-28664.0,0.000249,2]
[399940011,1766905842703,-293.36630454,0.00024904,2]
[399940012,1766905842713,-151.0,0.00024997,7]
[399940013,1766905842724,-1270.17532017,0.00025,2]
[399940014,1766905842735,-150.0,0.00025,2]
[399940015,1766905842746,-291143.73734022,0.00025,3]
[399940016,1766905842756,-155.052372,0.00025,7]
[399940017,1766905842767,-151.0,0.00025,7]
[399940018,1766905842778,-659.86,0.00025096,2]
[399940019,1766905842789,-659.86,0.00025096,2]
[399940020,1766905842799,-659.86,0.00025096,2]
[399940021,1766905842810,-659.86,0.00025096,2]
[399940022,1766905842821,-659.86,0.00025096,2]
[399940023,1766905842831,-659.86,0.00025096,2]
[399940024,1766905842841,-659.86,0.00025096,2]
[399940025,1766905842851,-659.86,0.00025096,2]
[399940026,1766905842862,-659.86,0.00025096,2]
[399940027,1766905842872,-659.86,0.00025096,2]